[Event "Titled Tuesday Blitz November 08 Late 2022"]
[White "Romero Ruscalleda, Josep"]
[Black "Atakishiyev, Elmar"]
[WhiteFideId "2231859"]
[BlackFideId "13410547"]
[WhiteElo "2183"]
[BlackElo "2194"]
[Result "0-1"]
[Round "01"]
[TimeControl "180+1"]
[Date "2022.11.09"]
[WhiteClock "0:00:02"]
[BlackClock "0:00:06"]

1. e4 {[%clk 0:02:57]}  e6 {[%clk 0:02:52]} 2. d4 {[%clk 0:02:57]}  d5 {[%clk 0:02:46]} 3. e5 {[%clk 0:02:58]}  c5 {[%clk 0:02:46]} 4. c3 {[%clk 0:02:58]}  Nc6 {[%clk 0:02:46]} 5. Be3 {[%clk 0:02:58]}  Qb6 {[%clk 0:02:46]} 6. Qd2 {[%clk 0:02:57]}  Bd7 {[%clk 0:02:43]} 7. Nf3 {[%clk 0:02:56]}  Rc8 {[%clk 0:02:41]} 8. dxc5 {[%clk 0:02:56]}  Bxc5 {[%clk 0:02:40]} 9. Bxc5 {[%clk 0:02:56]}  Qxc5 {[%clk 0:02:41]} 10. Bd3 {[%clk 0:02:54]}  Nge7 {[%clk 0:02:41]} 11. Qg5 {[%clk 0:02:49]}  Ng6 {[%clk 0:02:38]} 12. O-O {[%clk 0:02:48]}  O-O {[%clk 0:02:29]} 13. h4 {[%clk 0:02:35]}  Qe7 {[%clk 0:02:01]} 14. Qg3 {[%clk 0:02:32]}  f5 {[%clk 0:01:55]} 15. exf6 {[%clk 0:02:29]}  Qxf6 {[%clk 0:01:51]} 16. Bxg6 {[%clk 0:02:20]}  hxg6 {[%clk 0:01:44]} 17. Re1 {[%clk 0:02:20]}  b5 {[%clk 0:00:59]} 18. a3 {[%clk 0:02:07]}  Rce8 {[%clk 0:00:54]} 19. Ne5 {[%clk 0:02:05]}  Nxe5 {[%clk 0:00:41]} 20. Rxe5 {[%clk 0:02:04]}  Qf4 {[%clk 0:00:24]} 21. Qxf4 {[%clk 0:01:53]}  Rxf4 {[%clk 0:00:25]} 22. g3 {[%clk 0:01:53]}  Rf5 {[%clk 0:00:23]} 23. Re3 {[%clk 0:01:22]}  e5 {[%clk 0:00:21]} 24. Nd2 {[%clk 0:01:22]}  Ref8 {[%clk 0:00:21]} 25. f3 {[%clk 0:01:12]}  Bc6 {[%clk 0:00:21]} 26. Rae1 {[%clk 0:01:08]}  Re8 {[%clk 0:00:10]} 27. Nb3 {[%clk 0:00:59]}  Kf7 {[%clk 0:00:08]} 28. Nc5 {[%clk 0:00:49]}  e4 {[%clk 0:00:07]} 29. fxe4 {[%clk 0:00:44]}  Rfe5 {[%clk 0:00:08]} 30. Nd3 {[%clk 0:00:35]}  Rxe4 {[%clk 0:00:08]} 31. Kf2 {[%clk 0:00:35]}  Kg8 {[%clk 0:00:07]} 32. Nf4 {[%clk 0:00:31]}  Rf8 {[%clk 0:00:05]} 33. Rxe4 {[%clk 0:00:24]}  dxe4 {[%clk 0:00:06]} 34. Rd1 {[%clk 0:00:21]}  Kh7 {[%clk 0:00:06]} 35. Ke3 {[%clk 0:00:21]}  Rf5 {[%clk 0:00:05]} 36. Rd6 {[%clk 0:00:19]}  Ba8 {[%clk 0:00:04]} 37. Nxg6 {[%clk 0:00:17]}  Rf3+ {[%clk 0:00:03]} 38. Kd2 {[%clk 0:00:13]}  Rxg3 {[%clk 0:00:03]} 39. Nf8+ {[%clk 0:00:12]}  Kg8 {[%clk 0:00:03]} 40. Rd8 {[%clk 0:00:10]}  e3+ {[%clk 0:00:02]} 41. Ke1 {[%clk 0:00:09]}  Be4 {[%clk 0:00:02]} 42. Ne6+ {[%clk 0:00:08]}  Kf7 {[%clk 0:00:02]} 43. Ng5+ {[%clk 0:00:08]}  Ke7 {[%clk 0:00:03]} 44. Nxe4 {[%clk 0:00:08]}  Rg1+ {[%clk 0:00:03]} 45. Ke2 {[%clk 0:00:08]}  Kxd8 {[%clk 0:00:04]} 46. Kxe3 {[%clk 0:00:08]}  Rg2 {[%clk 0:00:05]} 47. b4 {[%clk 0:00:07]}  Rh2 {[%clk 0:00:05]} 48. Nd6 {[%clk 0:00:06]}  a6 {[%clk 0:00:04]} 49. Nf5 {[%clk 0:00:03]}  Rh3+ {[%clk 0:00:04]} 50. Kd4 {[%clk 0:00:03]}  g6 {[%clk 0:00:05]} 51. Nd6 {[%clk 0:00:01]}  Rxh4+ {[%clk 0:00:05]} 52. Kc5 {[%clk 0:00:02]}  Kd7 {[%clk 0:00:06]} 0-1


[Site "https://www.chess.com"]

[Event "Titled Tuesday Blitz November 08 Late 2022"]
[White "Roque Sola, Gisela"]
[Black "Principe, Gerson"]
[WhiteFideId "5120241"]
[BlackFideId "3804550"]
[WhiteElo "1961"]
[BlackElo "2280"]
[Result "0-1"]
[Round "01"]
[TimeControl "180+1"]
[Date "2022.11.09"]
[WhiteClock "0:00:03"]
[BlackClock "0:01:30"]

1. c4 {[%clk 0:03:00]}  e6 {[%clk 0:02:59]} 2. Nf3 {[%clk 0:02:59]}  b6 {[%clk 0:02:58]} 3. g3 {[%clk 0:02:59]}  Bb7 {[%clk 0:02:59]} 4. Bg2 {[%clk 0:02:59]}  f5 {[%clk 0:03:00]} 5. d3 {[%clk 0:02:49]}  Nf6 {[%clk 0:02:59]} 6. Nc3 {[%clk 0:02:49]}  Bb4 {[%clk 0:02:56]} 7. O-O {[%clk 0:02:47]}  Bxc3 {[%clk 0:02:53]} 8. bxc3 {[%clk 0:02:48]}  O-O {[%clk 0:02:54]} 9. Qb3 {[%clk 0:02:11]}  Nc6 {[%clk 0:02:52]} 10. Ba3 {[%clk 0:02:07]}  Re8 {[%clk 0:02:51]} 11. Qc2 {[%clk 0:01:54]}  e5 {[%clk 0:02:50]} 12. Nd2 {[%clk 0:01:49]}  d6 {[%clk 0:02:46]} 13. Rab1 {[%clk 0:01:37]}  Na5 {[%clk 0:02:45]} 14. Bxb7 {[%clk 0:01:33]}  Nxb7 {[%clk 0:02:45]} 15. d4 {[%clk 0:01:13]}  e4 {[%clk 0:02:43]} 16. c5 {[%clk 0:01:06]}  dxc5 {[%clk 0:02:41]} 17. dxc5 {[%clk 0:01:05]}  Qd5 {[%clk 0:02:41]} 18. Qb3 {[%clk 0:00:54]}  Na5 {[%clk 0:02:38]} 19. Qxd5+ {[%clk 0:00:49]}  Nxd5 {[%clk 0:02:39]} 20. Bb4 {[%clk 0:00:41]}  Nc6 {[%clk 0:02:34]} 21. cxb6 {[%clk 0:00:33]}  axb6 {[%clk 0:02:33]} 22. a3 {[%clk 0:00:29]}  e3 {[%clk 0:02:32]} 23. fxe3 {[%clk 0:00:27]}  Nxe3 {[%clk 0:02:33]} 24. Rf2 {[%clk 0:00:20]}  g6 {[%clk 0:02:32]} 25. c4 {[%clk 0:00:18]}  Rad8 {[%clk 0:02:30]} 26. Nf3 {[%clk 0:00:17]}  Ng4 {[%clk 0:02:25]} 27. Rg2 {[%clk 0:00:16]}  Nd4 {[%clk 0:02:22]} 28. Nxd4 {[%clk 0:00:16]}  Rxd4 {[%clk 0:02:23]} 29. c5 {[%clk 0:00:15]}  Rde4 {[%clk 0:02:13]} 30. cxb6 {[%clk 0:00:15]}  cxb6 {[%clk 0:02:14]} 31. Bc3 {[%clk 0:00:11]}  Rxe2 {[%clk 0:02:11]} 32. Rxe2 {[%clk 0:00:09]}  Rxe2 {[%clk 0:02:12]} 33. Rxb6 {[%clk 0:00:08]}  Nxh2 {[%clk 0:02:11]} 34. a4 {[%clk 0:00:07]}  Ra2 {[%clk 0:02:05]} 35. a5 {[%clk 0:00:07]}  Nf3+ {[%clk 0:02:05]} 36. Kf1 {[%clk 0:00:06]}  Nd2+ {[%clk 0:01:55]} 37. Bxd2 {[%clk 0:00:06]}  Rxd2 {[%clk 0:01:56]} 38. a6 {[%clk 0:00:06]}  Ra2 {[%clk 0:01:57]} 39. Rb8+ {[%clk 0:00:03]}  Kg7 {[%clk 0:01:57]} 40. Rb7+ {[%clk 0:00:03]}  Kf6 {[%clk 0:01:45]} 41. a7 {[%clk 0:00:04]}  h6 {[%clk 0:01:39]} 42. Rh7 {[%clk 0:00:04]}  Kg5 {[%clk 0:01:37]} 43. Rb7 {[%clk 0:00:04]}  Kg4 {[%clk 0:01:35]} 44. Rg7 {[%clk 0:00:03]}  g5 {[%clk 0:01:34]} 45. Rh7 {[%clk 0:00:04]}  Kxg3 {[%clk 0:01:33]} 46. Rxh6 {[%clk 0:00:03]}  Rxa7 {[%clk 0:01:30]} 47. Rg6 {[%clk 0:00:03]}  g4 {[%clk 0:01:30]} 0-1


[Site "https://www.chess.com"]

[Event "Titled Tuesday Blitz November 08 Late 2022"]
[White "Rosen, Eric"]
[Black "Rodriguez Santiago, Jaime"]
[WhiteFideId "2032562"]
[BlackFideId "3100898"]
[WhiteElo "2362"]
[BlackElo "2025"]
[Result "1-0"]
[Round "01"]
[TimeControl "180+1"]
[Date "2022.11.09"]
[WhiteClock "0:00:26"]
[BlackClock "0:00:21"]

1. d4 {[%clk 0:02:59]}  Nf6 {[%clk 0:02:58]} 2. Bf4 {[%clk 0:02:58]}  d5 {[%clk 0:02:55]} 3. e3 {[%clk 0:02:59]}  c5 {[%clk 0:02:54]} 4. Nf3 {[%clk 0:02:59]}  Nc6 {[%clk 0:02:52]} 5. Nbd2 {[%clk 0:02:57]}  Qb6 {[%clk 0:02:51]} 6. dxc5 {[%clk 0:02:57]}  Qxc5 {[%clk 0:02:50]} 7. a3 {[%clk 0:02:57]}  Bg4 {[%clk 0:02:46]} 8. b4 {[%clk 0:02:50]}  Qb6 {[%clk 0:02:41]} 9. Be2 {[%clk 0:02:39]}  a6 {[%clk 0:02:32]} 10. O-O {[%clk 0:02:33]}  e6 {[%clk 0:02:31]} 11. c4 {[%clk 0:02:31]}  Be7 {[%clk 0:02:15]} 12. Rc1 {[%clk 0:02:08]}  O-O {[%clk 0:02:11]} 13. h3 {[%clk 0:02:06]}  Bh5 {[%clk 0:02:09]} 14. Qb3 {[%clk 0:01:58]}  dxc4 {[%clk 0:02:00]} 15. Nxc4 {[%clk 0:01:57]}  Qa7 {[%clk 0:01:59]} 16. Rfd1 {[%clk 0:01:54]}  Rfd8 {[%clk 0:01:54]} 17. Bc7 {[%clk 0:01:48]}  Rxd1+ {[%clk 0:01:52]} 18. Rxd1 {[%clk 0:01:49]}  Rc8 {[%clk 0:01:49]} 19. Bg3 {[%clk 0:01:43]}  Bg6 {[%clk 0:01:38]} 20. Qb2 {[%clk 0:01:23]}  Ne4 {[%clk 0:01:31]} 21. Bf4 {[%clk 0:01:07]}  Bf6 {[%clk 0:01:30]} 22. Nce5 {[%clk 0:01:02]}  Nxe5 {[%clk 0:01:25]} 23. Nxe5 {[%clk 0:01:02]}  Nc3 {[%clk 0:01:19]} 24. Rd2 {[%clk 0:00:57]}  Nxe2+ {[%clk 0:01:15]} 25. Rxe2 {[%clk 0:00:57]}  Rd8 {[%clk 0:00:59]} 26. Rd2 {[%clk 0:00:54]}  Qb8 {[%clk 0:00:49]} 27. Rxd8+ {[%clk 0:00:43]}  Qxd8 {[%clk 0:00:49]} 28. Qe2 {[%clk 0:00:38]}  Be4 {[%clk 0:00:48]} 29. f3 {[%clk 0:00:38]}  Bd5 {[%clk 0:00:48]} 30. e4 {[%clk 0:00:38]}  Bb3 {[%clk 0:00:47]} 31. Qd3 {[%clk 0:00:36]}  Qxd3 {[%clk 0:00:44]} 32. Nxd3 {[%clk 0:00:37]}  Bd4+ {[%clk 0:00:38]} 33. Kh2 {[%clk 0:00:33]}  b6 {[%clk 0:00:37]} 34. Bc7 {[%clk 0:00:32]}  Kf8 {[%clk 0:00:35]} 35. Kg3 {[%clk 0:00:32]}  Ke7 {[%clk 0:00:35]} 36. Be5 {[%clk 0:00:31]}  Bxe5+ {[%clk 0:00:32]} 37. Nxe5 {[%clk 0:00:32]}  f6 {[%clk 0:00:31]} 38. Nd3 {[%clk 0:00:31]}  Kd6 {[%clk 0:00:31]} 39. Kf4 {[%clk 0:00:31]}  Bc4 {[%clk 0:00:30]} 40. e5+ {[%clk 0:00:29]}  Kd5 {[%clk 0:00:27]} 41. exf6 {[%clk 0:00:29]}  gxf6 {[%clk 0:00:27]} 42. Nf2 {[%clk 0:00:29]}  Bf1 {[%clk 0:00:22]} 43. g4 {[%clk 0:00:28]}  Kc4 {[%clk 0:00:21]} 44. Ne4 {[%clk 0:00:25]}  f5 {[%clk 0:00:21]} 45. Nd2+ {[%clk 0:00:25]}  Kd3 {[%clk 0:00:21]} 46. Nxf1 {[%clk 0:00:26]} 1-0


[Site "https://www.chess.com"]

[Event "Titled Tuesday Blitz November 08 Late 2022"]
[White "Rosenberg, Evan S"]
[Black "Preotu, Razvan"]
[WhiteFideId "2019299"]
[BlackFideId "2613280"]
[WhiteElo "2398"]
[BlackElo "2407"]
[Result "0-1"]
[Round "01"]
[TimeControl "180+1"]
[Date "2022.11.09"]
[WhiteClock "0:00:10"]
[BlackClock "0:00:44"]

1. d4 {[%clk 0:02:58]}  Nf6 {[%clk 0:02:59]} 2. Nf3 {[%clk 0:02:58]}  g6 {[%clk 0:03:00]} 3. Nc3 {[%clk 0:02:58]}  d5 {[%clk 0:03:00]} 4. Bf4 {[%clk 0:02:58]}  Bg7 {[%clk 0:03:00]} 5. Nb5 {[%clk 0:02:48]}  Na6 {[%clk 0:03:00]} 6. e3 {[%clk 0:02:46]}  O-O {[%clk 0:02:59]} 7. h3 {[%clk 0:02:45]}  Ne4 {[%clk 0:02:59]} 8. Be2 {[%clk 0:02:37]}  c6 {[%clk 0:02:58]} 9. Nc3 {[%clk 0:02:29]}  Qa5 {[%clk 0:02:42]} 10. O-O {[%clk 0:02:20]}  Nxc3 {[%clk 0:02:42]} 11. bxc3 {[%clk 0:02:16]}  Qxc3 {[%clk 0:02:42]} 12. Bxa6 {[%clk 0:02:10]}  bxa6 {[%clk 0:02:43]} 13. Rb1 {[%clk 0:02:06]}  Bf5 {[%clk 0:02:42]} 14. Rb7 {[%clk 0:01:52]}  Rfe8 {[%clk 0:02:28]} 15. Ne5 {[%clk 0:01:28]}  f6 {[%clk 0:02:23]} 16. Nd3 {[%clk 0:01:25]}  e5 {[%clk 0:02:20]} 17. dxe5 {[%clk 0:01:18]}  fxe5 {[%clk 0:02:21]} 18. Bg3 {[%clk 0:01:09]}  Rad8 {[%clk 0:01:38]} 19. Rxa7 {[%clk 0:00:59]}  d4 {[%clk 0:01:37]} 20. exd4 {[%clk 0:00:55]}  e4 {[%clk 0:01:29]} 21. Rxg7+ {[%clk 0:00:34]}  Kxg7 {[%clk 0:01:30]} 22. Be5+ {[%clk 0:00:27]}  Kg8 {[%clk 0:01:30]} 23. d5 {[%clk 0:00:23]}  Rxe5 {[%clk 0:01:18]} 24. Nxe5 {[%clk 0:00:21]}  Qxe5 {[%clk 0:01:19]} 25. c4 {[%clk 0:00:18]}  cxd5 {[%clk 0:01:19]} 26. cxd5 {[%clk 0:00:19]}  Qxd5 {[%clk 0:01:09]} 27. Qa4 {[%clk 0:00:18]}  Qd3 {[%clk 0:01:06]} 28. Re1 {[%clk 0:00:16]}  Qd2 {[%clk 0:00:57]} 29. Re3 {[%clk 0:00:14]}  Qd1+ {[%clk 0:00:57]} 30. Qxd1 {[%clk 0:00:14]}  Rxd1+ {[%clk 0:00:58]} 31. Kh2 {[%clk 0:00:15]}  Rd2 {[%clk 0:00:58]} 32. Ra3 {[%clk 0:00:14]}  Rxf2 {[%clk 0:00:58]} 33. Rxa6 {[%clk 0:00:15]}  e3 {[%clk 0:00:58]} 34. Kg3 {[%clk 0:00:15]}  Be4 {[%clk 0:00:57]} 35. Re6 {[%clk 0:00:14]}  Rxg2+ {[%clk 0:00:57]} 36. Kf4 {[%clk 0:00:14]}  Bf5 {[%clk 0:00:52]} 37. Rxe3 {[%clk 0:00:13]}  Rxa2 {[%clk 0:00:52]} 38. Kg5 {[%clk 0:00:12]}  Kf7 {[%clk 0:00:42]} 39. Kh6 {[%clk 0:00:10]}  Rh2 {[%clk 0:00:42]} 40. Kxh7 {[%clk 0:00:10]}  Rxh3+ {[%clk 0:00:43]} 41. Rxh3 {[%clk 0:00:10]}  Bxh3 {[%clk 0:00:44]} 42. Kh6 {[%clk 0:00:10]}  Kf6 {[%clk 0:00:44]} 0-1


[Site "https://www.chess.com"]

[Event "Titled Tuesday Blitz November 08 Late 2022"]
[White "Sanchez, Robert"]
[Black "Fernandez De La Vara, Arnaldo"]
[WhiteFideId "2034360"]
[BlackFideId "3518388"]
[WhiteElo "2356"]
[BlackElo "2387"]
[Result "0-1"]
[Round "01"]
[TimeControl "180+1"]
[Date "2022.11.09"]
[WhiteClock "0:00:09"]
[BlackClock "0:00:11"]

1. e4 {[%clk 0:03:00]}  c5 {[%clk 0:03:00]} 2. Nf3 {[%clk 0:03:01]}  e6 {[%clk 0:03:01]} 3. d4 {[%clk 0:03:01]}  cxd4 {[%clk 0:03:02]} 4. Nxd4 {[%clk 0:03:01]}  a6 {[%clk 0:03:02]} 5. Bd3 {[%clk 0:03:01]}  Nf6 {[%clk 0:03:03]} 6. Nc3 {[%clk 0:03:01]}  Qc7 {[%clk 0:03:02]} 7. Be3 {[%clk 0:03:01]}  d6 {[%clk 0:03:03]} 8. O-O {[%clk 0:03:00]}  Nbd7 {[%clk 0:03:03]} 9. Nb3 {[%clk 0:03:00]}  b5 {[%clk 0:03:03]} 10. a3 {[%clk 0:03:00]}  Bb7 {[%clk 0:03:03]} 11. f4 {[%clk 0:03:00]}  g6 {[%clk 0:03:02]} 12. f5 {[%clk 0:02:55]}  Bg7 {[%clk 0:03:00]} 13. fxe6 {[%clk 0:02:54]}  fxe6 {[%clk 0:03:01]} 14. Nd4 {[%clk 0:02:51]}  Nc5 {[%clk 0:02:54]} 15. Bxb5+ {[%clk 0:02:33]}  axb5 {[%clk 0:02:44]} 16. Ndxb5 {[%clk 0:02:33]}  Qc6 {[%clk 0:02:44]} 17. Nxd6+ {[%clk 0:02:31]}  Ke7 {[%clk 0:02:45]} 18. Nxb7 {[%clk 0:02:14]}  Nxb7 {[%clk 0:02:43]} 19. e5 {[%clk 0:02:10]}  Nd5 {[%clk 0:02:30]} 20. Bg5+ {[%clk 0:02:08]}  Ke8 {[%clk 0:02:30]} 21. Ne4 {[%clk 0:01:53]}  Rf8 {[%clk 0:02:01]} 22. Qg4 {[%clk 0:01:38]}  Kd7 {[%clk 0:01:55]} 23. c4 {[%clk 0:01:11]}  Nb6 {[%clk 0:01:48]} 24. Rfd1+ {[%clk 0:01:01]}  Kc7 {[%clk 0:01:46]} 25. Nd6 {[%clk 0:00:56]}  Bxe5 {[%clk 0:01:30]} 26. Nb5+ {[%clk 0:00:52]}  Kb8 {[%clk 0:01:30]} 27. Kh1 {[%clk 0:00:49]}  Qxc4 {[%clk 0:01:24]} 28. Nd4 {[%clk 0:00:40]}  Bxd4 {[%clk 0:01:16]} 29. Rac1 {[%clk 0:00:40]}  Bc3 {[%clk 0:00:53]} 30. Qg3+ {[%clk 0:00:33]}  Ka7 {[%clk 0:00:44]} 31. bxc3 {[%clk 0:00:31]}  Nd5 {[%clk 0:00:42]} 32. h3 {[%clk 0:00:27]}  Rf5 {[%clk 0:00:41]} 33. Rb1 {[%clk 0:00:22]}  Raf8 {[%clk 0:00:39]} 34. Kh2 {[%clk 0:00:19]}  Rxg5 {[%clk 0:00:32]} 35. Qxg5 {[%clk 0:00:18]}  Qf4+ {[%clk 0:00:33]} 36. Qxf4 {[%clk 0:00:18]}  Rxf4 {[%clk 0:00:34]} 37. Re1 {[%clk 0:00:18]}  Rf6 {[%clk 0:00:30]} 38. c4 {[%clk 0:00:17]}  Nb6 {[%clk 0:00:30]} 39. Rbc1 {[%clk 0:00:15]}  Nc5 {[%clk 0:00:30]} 40. Red1 {[%clk 0:00:13]}  Kb7 {[%clk 0:00:23]} 41. Rb1 {[%clk 0:00:13]}  Kc7 {[%clk 0:00:23]} 42. Rb5 {[%clk 0:00:12]}  Rf5 {[%clk 0:00:17]} 43. Rdb1 {[%clk 0:00:10]}  Ncd7 {[%clk 0:00:15]} 44. Rxf5 {[%clk 0:00:08]}  gxf5 {[%clk 0:00:16]} 45. Re1 {[%clk 0:00:07]}  Kd6 {[%clk 0:00:15]} 46. Kg3 {[%clk 0:00:06]}  Nxc4 {[%clk 0:00:14]} 47. Rd1+ {[%clk 0:00:07]}  Ke7 {[%clk 0:00:14]} 48. a4 {[%clk 0:00:08]}  Ndb6 {[%clk 0:00:13]} 49. Rb1 {[%clk 0:00:06]}  Nxa4 {[%clk 0:00:12]} 50. Rb7+ {[%clk 0:00:06]}  Kf6 {[%clk 0:00:13]} 51. Rxh7 {[%clk 0:00:07]}  Nc5 {[%clk 0:00:11]} 52. Rh6+ {[%clk 0:00:07]}  Kg5 {[%clk 0:00:10]} 53. Rh8 {[%clk 0:00:07]}  Ne4+ {[%clk 0:00:10]} 54. Kf3 {[%clk 0:00:07]}  Ned2+ {[%clk 0:00:11]} 55. Kf2 {[%clk 0:00:07]}  e5 {[%clk 0:00:11]} 56. g3 {[%clk 0:00:08]}  e4 {[%clk 0:00:09]} 57. Rg8+ {[%clk 0:00:08]}  Kf6 {[%clk 0:00:09]} 58. Rf8+ {[%clk 0:00:08]}  Ke5 {[%clk 0:00:09]} 59. Re8+ {[%clk 0:00:08]}  Kd4 {[%clk 0:00:10]} 60. h4 {[%clk 0:00:09]}  e3+ {[%clk 0:00:09]} 61. Ke2 {[%clk 0:00:08]}  Ne4 {[%clk 0:00:09]} 62. Kf3 {[%clk 0:00:07]}  Ncd2+ {[%clk 0:00:09]} 63. Ke2 {[%clk 0:00:08]}  Nxg3+ {[%clk 0:00:09]} 64. Ke1 {[%clk 0:00:08]}  Nf3+ {[%clk 0:00:09]} 65. Kd1 {[%clk 0:00:07]}  e2+ {[%clk 0:00:09]} 66. Rxe2 {[%clk 0:00:08]}  Nxe2 {[%clk 0:00:10]} 67. Kxe2 {[%clk 0:00:08]}  Nxh4 {[%clk 0:00:11]} 68. Kf2 {[%clk 0:00:09]}  Ke4 {[%clk 0:00:11]} 0-1


[Site "https://www.chess.com"]

[Event "Titled Tuesday Blitz November 08 Late 2022"]
[White "Silva, Caio Henrique Angelico"]
[Black "Romanchuk, Viktor"]
[WhiteFideId "22777210"]
[BlackFideId "14109271"]
[WhiteElo "1990"]
[BlackElo "2242"]
[Result "1/2-1/2"]
[Round "01"]
[TimeControl "180+1"]
[Date "2022.11.09"]
[WhiteClock "0:00:07"]
[BlackClock "0:00:08"]

1. Nf3 {[%clk 0:02:58]}  d5 {[%clk 0:02:59]} 2. g3 {[%clk 0:02:58]}  c6 {[%clk 0:02:59]} 3. Bg2 {[%clk 0:02:58]}  Bg4 {[%clk 0:02:59]} 4. O-O {[%clk 0:02:56]}  Nd7 {[%clk 0:02:58]} 5. d4 {[%clk 0:02:55]}  e6 {[%clk 0:02:58]} 6. c4 {[%clk 0:02:53]}  Bd6 {[%clk 0:02:56]} 7. Nc3 {[%clk 0:02:53]}  Ngf6 {[%clk 0:02:55]} 8. Qb3 {[%clk 0:02:52]}  Rb8 {[%clk 0:02:54]} 9. cxd5 {[%clk 0:02:49]}  exd5 {[%clk 0:02:53]} 10. a4 {[%clk 0:02:44]}  a5 {[%clk 0:02:47]} 11. Qc2 {[%clk 0:02:29]}  O-O {[%clk 0:02:45]} 12. Bf4 {[%clk 0:02:27]}  Qe7 {[%clk 0:02:28]} 13. Bxd6 {[%clk 0:01:57]}  Qxd6 {[%clk 0:02:26]} 14. Rad1 {[%clk 0:01:52]}  Rfe8 {[%clk 0:02:24]} 15. e3 {[%clk 0:01:51]}  Ne4 {[%clk 0:02:20]} 16. Rc1 {[%clk 0:01:46]}  Bf5 {[%clk 0:02:11]} 17. Nh4 {[%clk 0:01:34]}  Qf6 {[%clk 0:01:36]} 18. Nxf5 {[%clk 0:01:29]}  Qxf5 {[%clk 0:01:37]} 19. Nxe4 {[%clk 0:01:24]}  dxe4 {[%clk 0:01:38]} 20. f3 {[%clk 0:01:20]}  Qg5 {[%clk 0:01:28]} 21. f4 {[%clk 0:01:15]}  Qd5 {[%clk 0:01:27]} 22. Qc4 {[%clk 0:00:53]}  Nb6 {[%clk 0:01:25]} 23. Qc5 {[%clk 0:00:50]}  Nxa4 {[%clk 0:01:20]} 24. Qxd5 {[%clk 0:00:46]}  cxd5 {[%clk 0:01:21]} 25. b3 {[%clk 0:00:45]}  Nb6 {[%clk 0:01:07]} 26. Rc5 {[%clk 0:00:44]}  Rec8 {[%clk 0:01:06]} 27. Rxa5 {[%clk 0:00:42]}  Rc3 {[%clk 0:01:03]} 28. Rb5 {[%clk 0:00:41]}  Nd7 {[%clk 0:01:02]} 29. Re1 {[%clk 0:00:37]}  Nf6 {[%clk 0:01:01]} 30. h3 {[%clk 0:00:35]}  Kf8 {[%clk 0:00:55]} 31. g4 {[%clk 0:00:35]}  h6 {[%clk 0:00:51]} 32. g5 {[%clk 0:00:31]}  hxg5 {[%clk 0:00:52]} 33. fxg5 {[%clk 0:00:32]}  Ng8 {[%clk 0:00:38]} 34. Rxd5 {[%clk 0:00:31]}  Rxb3 {[%clk 0:00:38]} 35. Bxe4 {[%clk 0:00:32]}  b5 {[%clk 0:00:37]} 36. Rd7 {[%clk 0:00:27]}  Ne7 {[%clk 0:00:36]} 37. d5 {[%clk 0:00:25]}  Ke8 {[%clk 0:00:22]} 38. Rc7 {[%clk 0:00:25]}  Rd8 {[%clk 0:00:21]} 39. Rd1 {[%clk 0:00:19]}  Rxe3 {[%clk 0:00:20]} 40. Bg2 {[%clk 0:00:16]}  Nf5 {[%clk 0:00:19]} 41. d6 {[%clk 0:00:14]}  Nxd6 {[%clk 0:00:19]} 42. Bc6+ {[%clk 0:00:11]}  Kf8 {[%clk 0:00:19]} 43. Bxb5 {[%clk 0:00:11]}  Rg3+ {[%clk 0:00:10]} 44. Kh2 {[%clk 0:00:11]}  Rxg5 {[%clk 0:00:10]} 45. Bf1 {[%clk 0:00:08]}  Re5 {[%clk 0:00:10]} 46. Bg2 {[%clk 0:00:09]}  Re7 {[%clk 0:00:10]} 47. Rc6 {[%clk 0:00:08]}  Re6 {[%clk 0:00:10]} 48. Rd2 {[%clk 0:00:07]}  Ke7 {[%clk 0:00:09]} 49. Rc7+ {[%clk 0:00:07]}  Rd7 {[%clk 0:00:10]} 50. Rcc2 {[%clk 0:00:04]}  Ne4 {[%clk 0:00:09]} 51. Rxd7+ {[%clk 0:00:04]}  Kxd7 {[%clk 0:00:09]} 52. Ra2 {[%clk 0:00:04]}  Nd6 {[%clk 0:00:08]} 53. Ra7+ {[%clk 0:00:05]}  Ke8 {[%clk 0:00:08]} 54. Ra8+ {[%clk 0:00:05]}  Ke7 {[%clk 0:00:08]} 55. Ra7+ {[%clk 0:00:06]}  Kf6 {[%clk 0:00:08]} 56. Ra6 {[%clk 0:00:06]}  Nf5 {[%clk 0:00:08]} 57. Ra5 {[%clk 0:00:06]}  g6 {[%clk 0:00:08]} 58. Bf1 {[%clk 0:00:04]}  Ne3 {[%clk 0:00:08]} 59. Bd3 {[%clk 0:00:04]}  Re7 {[%clk 0:00:08]} 60. Ra6+ {[%clk 0:00:04]}  Re6 {[%clk 0:00:07]} 61. Rxe6+ {[%clk 0:00:03]}  Kxe6 {[%clk 0:00:07]} 62. Kg3 {[%clk 0:00:04]}  Ke5 {[%clk 0:00:07]} 63. Bb1 {[%clk 0:00:03]}  Nd5 {[%clk 0:00:07]} 64. Kf3 {[%clk 0:00:04]}  Kf6 {[%clk 0:00:06]} 65. h4 {[%clk 0:00:04]}  Ne7 {[%clk 0:00:07]} 66. Kg4 {[%clk 0:00:04]}  Nf5 {[%clk 0:00:07]} 67. Bxf5 {[%clk 0:00:03]}  gxf5+ {[%clk 0:00:07]} 68. Kf4 {[%clk 0:00:04]}  Kg6 {[%clk 0:00:07]} 69. h5+ {[%clk 0:00:05]}  Kxh5 {[%clk 0:00:06]} 70. Kxf5 {[%clk 0:00:05]}  Kh6 {[%clk 0:00:07]} 71. Kf6 {[%clk 0:00:06]}  Kh7 {[%clk 0:00:08]} 72. Kxf7 {[%clk 0:00:07]} 1/2-1/2


[Site "https://www.chess.com"]

[Event "Titled Tuesday Blitz November 08 Late 2022"]
[White "Sivakumar, Shaaketh"]
[Black "Beerdsen, Thomas"]
[WhiteFideId "30940176"]
[BlackFideId "1030108"]
[WhiteElo "2174"]
[BlackElo "2567"]
[Result "0-1"]
[Round "01"]
[TimeControl "180+1"]
[Date "2022.11.09"]
[WhiteClock "0:01:45"]
[BlackClock "0:02:34"]

1. d4 {[%clk 0:03:00]}  h6 {[%clk 0:03:00]} 2. e4 {[%clk 0:03:00]}  g5 {[%clk 0:03:01]} 3. Nc3 {[%clk 0:02:57]}  Bg7 {[%clk 0:03:01]} 4. Be3 {[%clk 0:02:56]}  c5 {[%clk 0:03:01]} 5. d5 {[%clk 0:02:54]}  d6 {[%clk 0:03:01]} 6. Nge2 {[%clk 0:02:49]}  Nf6 {[%clk 0:02:58]} 7. f3 {[%clk 0:02:49]}  a6 {[%clk 0:02:58]} 8. Qd2 {[%clk 0:02:49]}  b5 {[%clk 0:02:59]} 9. a4 {[%clk 0:02:39]}  b4 {[%clk 0:02:56]} 10. Nb1 {[%clk 0:02:39]}  Nbd7 {[%clk 0:02:53]} 11. Nc1 {[%clk 0:02:39]}  Ne5 {[%clk 0:02:53]} 12. c4 {[%clk 0:02:36]}  bxc3 {[%clk 0:02:50]} 13. Nxc3 {[%clk 0:02:35]}  Rb8 {[%clk 0:02:51]} 14. Bd3 {[%clk 0:02:27]}  Nh5 {[%clk 0:02:48]} 15. O-O {[%clk 0:02:26]}  Nf4 {[%clk 0:02:48]} 16. Bxf4 {[%clk 0:02:25]}  gxf4 {[%clk 0:02:49]} 17. Qxf4 {[%clk 0:02:24]}  Rxb2 {[%clk 0:02:48]} 18. Ra3 {[%clk 0:02:11]}  Rg8 {[%clk 0:02:43]} 19. Re1 {[%clk 0:02:03]}  Nxd3 {[%clk 0:02:42]} 20. Nxd3 {[%clk 0:01:59]}  Bd4+ {[%clk 0:02:41]} 21. Kh1 {[%clk 0:01:57]}  Rbxg2 {[%clk 0:02:41]} 22. Ne2 {[%clk 0:01:56]}  Qa5 {[%clk 0:02:37]} 23. Rc1 {[%clk 0:01:50]}  Rxe2 {[%clk 0:02:36]} 24. Qxh6 {[%clk 0:01:47]}  Qe1+ {[%clk 0:02:33]} 25. Rxe1 {[%clk 0:01:45]}  Rxe1+ {[%clk 0:02:34]} 26. Nxe1 {[%clk 0:01:45]}  Rg1# {[%clk 0:02:34]} 0-1


[Site "https://www.chess.com"]